[Event "DVM U10 2024"]
[Site "Duesseldorf"]
[Date "2024.12.29"]
[Round "7"]
[White "Seitov, Adela"]
[Black "Boeskov, Steffen"]
[Result "1-0"]
[ECO "C50"]
[WhiteElo "911"]
[BlackElo "1933"]
[Annotator "NA"]
[PlyCount "73"]
[EventDate "2024.12.23"]
[EventType "team-tourn"]
[EventRounds "7"]
[EventCountry "GER"]
[SourceTitle "playchess.com"]
[Source "ChessBase"]
[SourceQuality "1"]
[TimeControl "3300+5"]

1. e4 {[%emt 0:00:02]} e5 {[%emt 0:00:08]} 2. Nf3 {[%emt 0:00:06]} Nc6 {[%emt 0:00:14]} 3. Bc4 {[%emt 0:00:07]} Nf6 {[%emt 0:00:10]} 4. Nc3 {[%emt 0:00:15]} Bc5 {[%emt 0:00:11]} 5. d3 {[%emt 0:00:08]} Ng4 {[%emt 0:00:23]} 6. Be3 {[%emt 0:01:11]} Bxe3 {[%emt 0:01:10]} 7. fxe3 {[%emt 0:00:00]} Nxe3 {[%emt 0:00:19]} 8. Qe2 {[%emt 0:00:00]} Nxc4 {[%emt 0:00:26]} 9. dxc4 {[%emt 0:00:00]} O-O {[%emt 0:00:22]} 10. O-O-O {[%emt 0:02:17]} d6 {[%emt 0:00:12]} 11. h4 {[%emt 0:02:15]} Bg4 {[%emt 0:00:18]} 12. h5 {[%emt 0:00:46]} Nd4 {[%emt 0:00:27]} 13. Qf2 {[%emt 0:00:56]} h6 {[%emt 0:00:45]} 14. Rh2 {[%emt 0:01:56]} Qf6 {[%emt 0:00:34]} 15. Rd3 {[%emt 0:00:58]} Qf4+ {[%emt 0:01:20]} 16. Kb1 {[%emt 0:01:15]} f5 {[%emt 0:02:11]} 17. Nd5 {[%emt 0:00:20]} Qxh2 {[%emt 0:01:34]} 18. Nxh2 {[%emt 0:00:07]} fxe4 {[%emt 0:00:37]} 19. Ne7+ {[%emt 0:01:18]} Kh7 {[%emt 0:00:00]} 20. Qg3 {[%emt 0:00:55]} exd3 21. Qxd3+ Bf5 {[%emt 0:00:44]} 22. Nxf5 {[%emt 0:00:55]} Rxf5 {[%emt 0:00:38]} 23. g4 {[%emt 0:00:26]} Raf8 {[%emt 0:00:33]} 24. gxf5 {[%emt 0:00:32]} Rxf5 {[%emt 0:00:20]} 25. c3 {[%emt 0:00:19]} Kg8 {[%emt 0:02:36]} 26. cxd4 {[%emt 0:00:16]} Rf2 {[%emt 0:01:21]} 27. Qg3 {[%emt 0:00:31]} Rd2 {[%emt 0:00:36]} 28. dxe5 {[%emt 0:00:20]} dxe5 {[%emt 0:00:17]} 29. Qxe5 {[%emt 0:00:25]} Rd6 {[%emt 0:01:13]} 30. Qe8+ {[%emt 0:00:39]} Kh7 {[%emt 0:00:18]} 31. c5 {[%emt 0:00:40]} Rd2 {[%emt 0:00:22]} 32. c6 {[%emt 0:00:44]} bxc6 {[%emt 0:00:16]} 33. Qg6+ {[%emt 0:00:40]} Kg8 {[%emt 0:00:32]} 34. Ng4 {[%emt 0:00:19]} Kf8 {[%emt 0:00:37]} 35. Nxh6 {[%emt 0:00:36]} gxh6 {[%emt 0:00:21]} 36. Qxh6+ {[%emt 0:00:12]} Kf7 {[%emt 0:00:22]} 37. Qxd2 {[%emt 0:00:12]} 1-0

[Event "DVM U10 2024"]
[Site "Duesseldorf"]
[Date "2024.12.29"]
[Round "7"]
[White "Odbayar, Ekhbayar"]
[Black "Gheng, Hannes Lucas"]
[Result "0-1"]
[ECO "B50"]
[WhiteElo "864"]
[BlackElo "1482"]
[Annotator "NA"]
[PlyCount "64"]
[EventDate "2024.12.23"]
[EventType "team-tourn"]
[EventRounds "7"]
[EventCountry "GER"]
[SourceTitle "playchess.com"]
[Source "ChessBase"]
[SourceQuality "1"]
[TimeControl "3300+5"]

1. e4 {[%emt 0:00:01]} c5 {[%emt 0:00:04]} 2. Nf3 {[%emt 0:00:10]} d6 {[%emt 0:00:06]} 3. Bc4 {[%emt 0:00:21]} Nf6 {[%emt 0:00:07]} 4. Ng5 {[%emt 0:00:18]} e6 {[%emt 0:00:11]} 5. d3 {[%emt 0:00:36]} h6 {[%emt 0:00:10]} 6. Nf3 {[%emt 0:00:15]} Be7 {[%emt 0:00:10]} 7. O-O {[%emt 0:00:27]} O-O {[%emt 0:00:04]} 8. h3 {[%emt 0:00:17]} d5 {[%emt 0:00:18]} 9. exd5 {[%emt 0:00:54]} exd5 {[%emt 0:00:09]} 10. Bb3 {[%emt 0:00:09]} Nc6 {[%emt 0:00:49]} 11. c4 {[%emt 0:00:18]} Be6 {[%emt 0:00:56]} 12. cxd5 {[%emt 0:00:16]} Nxd5 {[%emt 0:01:17]} 13. Bxd5 {[%emt 0:00:12]} Bxd5 {[%emt 0:00:15]} 14. Re1 {[%emt 0:00:39]} Bf6 {[%emt 0:00:55]} 15. Re2 {[%emt 0:00:55]} Bxf3 {[%emt 0:00:26]} 16. gxf3 {[%emt 0:00:19]} Nd4 {[%emt 0:00:06]} 17. Re1 {[%emt 0:01:13]} Qc8 {[%emt 0:00:15]} 18. Be3 {[%emt 0:00:22]} Qxh3 {[%emt 0:00:15]} 19. Bxd4 {[%emt 0:00:33]} Bxd4 {[%emt 0:00:13]} 20. Qd2 {[%emt 0:01:00]} Kh7 {[%emt 0:00:59]} 21. Nc3 {[%emt 0:00:28]} g5 {[%emt 0:00:30]} 22. Nd5 {[%emt 0:01:58]} Rg8 {[%emt 0:00:31]} 23. Re7 {[%emt 0:01:01]} Rg7 {[%emt 0:00:32]} 24. Qe2 {[%emt 0:00:45]} Rag8 {[%emt 0:00:25]} 25. Qe4+ {[%emt 0:00:24]} f5 {[%emt 0:01:07]} 26. Rxg7+ {[%emt 0:00:19]} Rxg7 {[%emt 0:00:07]} 27. Qe2 {[%emt 0:00:34]} g4 {[%emt 0:00:27]} 28. fxg4 {[%emt 0:00:40]} Rxg4+ {[%emt 0:00:14]} 29. Qxg4 {[%emt 0:00:18]} fxg4 {[%emt 0:00:06]} 30. Nf4 {[%emt 0:00:12]} Qf3 {[%emt 0:06:00]} 31. Ng2 {[%emt 0:07:09]} Bxf2+ {[%emt 0:00:00]} 32. Kh1 {[%emt 0:00:21]} Qh3# {[%emt 0:00:00]} 0-1

[Event "DVM U10 2024"]
[Site "Duesseldorf"]
[Date "2024.12.29"]
[Round "7"]
[White "Sachse, Alina"]
[Black "Raskob, Levi Franziskus"]
[Result "1-0"]
[ECO "C23"]
[WhiteElo "848"]
[BlackElo "840"]
[Annotator "NA"]
[PlyCount "55"]
[EventDate "2024.12.23"]
[EventType "team-tourn"]
[EventRounds "7"]
[EventCountry "GER"]
[SourceTitle "playchess.com"]
[Source "ChessBase"]
[SourceQuality "1"]
[TimeControl "3300+5"]

1. e4 {[%emt 0:00:04]} e5 {[%emt 0:00:07]} 2. Bc4 {[%emt 0:00:09]} Qh4 {[%emt 0:00:19]} 3. Qe2 {[%emt 0:00:51]} b5 {[%emt 0:00:12]} 4. Bb3 {[%emt 0:00:32]} d6 {[%emt 0:00:16]} 5. Nf3 {[%emt 0:00:16]} Qg4 {[%emt 0:00:10]} 6. Nc3 {[%emt 0:03:24]} Qxg2 {[%emt 0:00:16]} 7. Rf1 {[%emt 0:00:09]} b4 {[%emt 0:00:26]} 8. Nd5 {[%emt 0:00:32]} c6 {[%emt 0:00:10]} 9. Nc7+ {[%emt 0:00:38]} Kd8 {[%emt 0:00:10]} 10. Nxa8 {[%emt 0:00:12]} c5 {[%emt 0:00:15]} 11. Qb5 {[%emt 0:06:29]} Qxf3 {[%emt 0:00:16]} 12. Qxb8 {[%emt 0:00:34]} Qxe4+ {[%emt 0:00:09]} 13. Kd1 {[%emt 0:00:21]} Ke7 {[%emt 0:00:15]} 14. Qxc8 {[%emt 0:00:44]} Nf6 {[%emt 0:00:17]} 15. Qc7+ {[%emt 0:00:55]} Nd7 {[%emt 0:00:09]} 16. d3 {[%emt 0:00:31]} Qxa8 {[%emt 0:00:13]} 17. Ba4 {[%emt 0:00:13]} Qf3+ {[%emt 0:00:15]} 18. Ke1 {[%emt 0:00:23]} g6 {[%emt 0:00:28]} 19. Qxd7+ {[%emt 0:00:24]} Kf6 {[%emt 0:00:14]} 20. Rg1 {[%emt 0:01:16]} Be7 {[%emt 0:00:15]} 21. Bg5+ {[%emt 0:00:29]} Kg7 {[%emt 0:00:24]} 22. Bxe7 {[%emt 0:00:30]} Qh3 {[%emt 0:00:30]} 23. Qxh3 {[%emt 0:00:25]} Rg8 {[%emt 0:00:37]} 24. Qh4 {[%emt 0:00:33]} Kh8 {[%emt 0:00:07]} 25. Qf6+ {[%emt 0:00:38]} Rg7 {[%emt 0:00:10]} 26. Qxd6 {[%emt 0:00:25]} g5 {[%emt 0:00:12]} 27. Qd8+ {[%emt 0:00:10]} Rg8 {[%emt 0:00:04]} 28. Bf6# {[%emt 0:01:54]} 1-0

[Event "DVM U10 2024"]
[Site "Duesseldorf"]
[Date "2024.12.29"]
[Round "7"]
[White "Nordmann, Vigo"]
[Black "Baasch, Julius"]
[Result "1-0"]
[ECO "B01"]
[WhiteElo "831"]
[BlackElo "774"]
[Annotator "NA"]
[PlyCount "61"]
[EventDate "2024.12.23"]
[EventType "team-tourn"]
[EventRounds "7"]
[EventCountry "GER"]
[SourceTitle "playchess.com"]
[Source "ChessBase"]
[SourceQuality "1"]
[TimeControl "3300+5"]

1. e4 {[%emt 0:00:01]} d5 {[%emt 0:00:05]} 2. d3 {[%emt 0:00:29]} dxe4 {[%emt 0:00:09]} 3. Nc3 {[%emt 0:00:22]} exd3 {[%emt 0:00:11]} 4. cxd3 {[%emt 0:00:54]} Nc6 {[%emt 0:00:00]} 5. Be2 {[%emt 0:00:45]} Nf6 {[%emt 0:00:11]} 6. Bf4 {[%emt 0:00:53]} e5 {[%emt 0:00:16]} 7. Bg5 {[%emt 0:00:21]} Be7 {[%emt 0:00:10]} 8. Nf3 {[%emt 0:00:32]} O-O {[%emt 0:00:16]} 9. Qd2 {[%emt 0:00:32]} h6 {[%emt 0:00:12]} 10. Bh4 {[%emt 0:00:12]} Be6 {[%emt 0:00:15]} 11. O-O {[%emt 0:01:36]} Nd4 {[%emt 0:00:18]} 12. Nxe5 {[%emt 0:00:41]} Nxe2+ {[%emt 0:00:12]} 13. Qxe2 {[%emt 0:00:42]} Bd6 {[%emt 0:01:18]} 14. Rad1 {[%emt 0:01:34]} c6 {[%emt 0:01:34]} 15. Rfe1 {[%emt 0:00:53]} Qa5 {[%emt 0:00:46]} 16. d4 {[%emt 0:02:06]} h5 {[%emt 0:01:07]} 17. Bxf6 {[%emt 0:01:22]} gxf6 {[%emt 0:00:37]} 18. Nf3 {[%emt 0:00:55]} Bg4 {[%emt 0:00:43]} 19. h3 {[%emt 0:00:26]} Bxf3 {[%emt 0:00:55]} 20. Qxf3 {[%emt 0:02:53]} Qg5 {[%emt 0:00:00]} 21. Ne4 {[%emt 0:00:49]} Qd5 {[%emt 0:00:00]} 22. Nxf6+ {[%emt 0:00:08]} Kh8 {[%emt 0:00:51]} 23. Nxd5 {[%emt 0:00:13]} cxd5 {[%emt 0:00:32]} 24. Qf6+ {[%emt 0:00:23]} Kg8 {[%emt 0:00:58]} 25. Qxd6 {[%emt 0:00:14]} Rad8 {[%emt 0:00:16]} 26. Qg3+ {[%emt 0:00:34]} Kh8 {[%emt 0:00:45]} 27. Re5 {[%emt 0:00:33]} f5 {[%emt 0:01:09]} 28. Rde1 {[%emt 0:00:40]} Rg8 {[%emt 0:01:05]} 29. Qh4 {[%emt 0:01:44]} Kg7 {[%emt 0:00:59]} 30. Re7+ {[%emt 0:00:27]} Kg6 {[%emt 0:00:41]} 31. R1e6# {[%emt 0:00:29]} 1-0